[Event "29th Czech Open-Rapid 2018"]
[Site "Pardubice"]
[Date "2018.07.18"]
[Round "1"]
[White "Gasanov, Eldar"]
[Black "Tarakanov, Oleg"]
[Result "1-0"]
[ECO "C25"]
[WhiteElo "2475"]
[BlackElo "2123"]
[Annotator "RC"]
[PlyCount "41"]
[EventDate "2018.07.18"]
[EventType "swiss"]
[EventCountry "CZE"]
[SourceTitle "playchess.com"]
[Source "ChessBase"]
[SourceQuality "1"]
[TimeControl "900+10"]

1. e4 {[%emt 0:00:00]} e5 {[%emt 0:00:00]} 2. Nc3 {[%emt 0:00:07]} Nc6 {[%emt 0:00:18]} 3. g3 {[%emt 0:00:06]} d6 {[%emt 0:00:56]} 4. Bg2 {[%emt 0:00:07]} Be7 {[%emt 0:00:46]} 5. Nge2 {[%emt 0:00:16]} Bg4 {[%emt 0:00:23]} 6. h3 {[%emt 0:00:14]} Bh5 {[%emt 0:00:05]} 7. O-O {[%emt 0:01:08]} Nf6 {[%emt 0:00:26]} 8. g4 {[%emt 0:00:33]} Bg6 {[%emt 0:00:05]} 9. f4 {[%emt 0:00:16]} exf4 {[%emt 0:01:01]} 10. Nxf4 {[%emt 0:00:14]} O-O {[%emt 0:01:17]} 11. d4 {[%emt 0:01:01]} Qd7 {[%emt 0:00:18]} 12. g5 {[%emt 0:00:47]} Ne8 {[%emt 0:00:22]} 13. h4 {[%emt 0:00:01]} h6 {[%emt 0:02:44]} 14. Bh3 {[%emt 0:01:24]} Qd8 {[%emt 0:00:07]} 15. h5 {[%emt 0:00:51]} hxg5 {[%emt 0:01:10]} 16. Nxg6 {[%emt 0:00:54]} fxg6 {[%emt 0:00:07]} 17. Be6+ {[%emt 0:01:05]} Kh7 {[%emt 0:00:19]} 18. Rxf8 {[%emt 0:00:54]} Bxf8 {[%emt 0:00:02]} 19. Bf7 {[%emt 0:00:42]} Qf6 {[%emt 0:02:39]} 20. hxg6+ {[%emt 0:00:18]} Kh6 {[%emt 0:00:04]} 21. Kg2 {[%emt 0:00:55]} 1-0

[Event "29th Czech Open-Rapid 2018"]
[Site "Pardubice"]
[Date "2018.07.18"]
[Round "1"]
[White "Sadhwani, Raunak"]
[Black "Fiala, Milan"]
[Result "1-0"]
[ECO "A01"]
[WhiteElo "2409"]
[BlackElo "1845"]
[Annotator "NA"]
[PlyCount "77"]
[EventDate "2018.07.18"]
[EventType "swiss"]
[EventCountry "CZE"]
[SourceTitle "playchess.com"]
[Source "ChessBase"]
[SourceQuality "1"]
[TimeControl "900+10"]

1. b3 {[%emt 0:00:00]} e5 {[%emt 0:00:00]} 2. Bb2 {[%emt 0:00:00]} Nc6 {[%emt 0:00:00]} 3. e3 {[%emt 0:00:00]} Nf6 {[%emt 0:00:09]} 4. Bb5 {[%emt 0:00:00]} d6 {[%emt 0:00:18]} 5. d4 {[%emt 0:00:19]} Bd7 {[%emt 0:01:10]} 6. Nf3 {[%emt 0:00:02]} e4 {[%emt 0:00:15]} 7. Nfd2 {[%emt 0:00:04]} d5 {[%emt 0:00:18]} 8. Bxc6 {[%emt 0:00:05]} bxc6 {[%emt 0:00:16]} 9. c4 {[%emt 0:00:01]} Bb4 {[%emt 0:00:48]} 10. a3 {[%emt 0:00:11]} Bxd2+ {[%emt 0:00:19]} 11. Nxd2 {[%emt 0:00:02]} O-O {[%emt 0:00:09]} 12. Qc2 {[%emt 0:00:02]} Re8 {[%emt 0:01:14]} 13. h3 {[%emt 0:00:06]} Rb8 {[%emt 0:00:35]} 14. Rc1 {[%emt 0:00:43]} Rb7 {[%emt 0:01:25]} 15. b4 {[%emt 0:00:12]} Qb8 {[%emt 0:01:02]} 16. Nb3 {[%emt 0:00:09]} Be6 {[%emt 0:01:07]} 17. Na5 {[%emt 0:00:46]} Rb6 {[%emt 0:02:19]} 18. c5 {[%emt 0:00:02]} Ra6 {[%emt 0:00:45]} 19. Bc3 {[%emt 0:00:10]} Bc8 {[%emt 0:02:15]} 20. O-O {[%emt 0:00:12]} Rxa5 {[%emt 0:00:11]} 21. bxa5 {[%emt 0:00:01]} Ba6 {[%emt 0:00:02]} 22. Rfe1 {[%emt 0:00:23]} Bd3 {[%emt 0:00:03]} 23. Qd2 {[%emt 0:00:03]} Nh5 {[%emt 0:00:59]} 24. f4 {[%emt 0:00:11]} Ng3 {[%emt 0:00:11]} 25. Qf2 {[%emt 0:00:10]} Nf5 {[%emt 0:00:20]} 26. g4 {[%emt 0:00:01]} Ne7 {[%emt 0:00:20]} 27. Kh2 {[%emt 0:00:01]} f5 {[%emt 0:00:17]} 28. Rg1 {[%emt 0:00:03]} Qc8 {[%emt 0:00:09]} 29. Rg3 {[%emt 0:00:21]} g6 {[%emt 0:00:05]} 30. Rcg1 {[%emt 0:00:02]} Kh8 {[%emt 0:00:11]} 31. R3g2 {[%emt 0:00:05]} fxg4 {[%emt 0:00:26]} 32. hxg4 {[%emt 0:00:02]} Rf8 {[%emt 0:00:08]} 33. Qh4 {[%emt 0:00:31]} Qe6 {[%emt 0:01:16]} 34. Be1 {[%emt 0:00:09]} Rb8 {[%emt 0:00:29]} 35. Bg3 {[%emt 0:00:04]} Rb3 {[%emt 0:00:06]} 36. f5 {[%emt 0:00:04]} Qf7 {[%emt 0:00:21]} 37. Be5+ {[%emt 0:00:02]} Kg8 {[%emt 0:00:03]} 38. Rf2 {[%emt 0:00:02]} Qe8 {[%emt 0:00:34]} 39. f6 {[%emt 0:00:01]} 1-0

[Event "29th Czech Open-Rapid 2018"]
[Site "Pardubice"]
[Date "2018.07.18"]
[Round "1"]
[White "Straka, Vojtech"]
[Black "Zhuravlev, Stepan"]
[Result "*"]
[ECO "D37"]
[WhiteElo "2379"]
[BlackElo "2121"]
[Annotator "NA"]
[PlyCount "163"]
[EventDate "2018.07.18"]
[EventType "swiss"]
[EventCountry "CZE"]
[SourceTitle "playchess.com"]
[Source "ChessBase"]
[SourceQuality "1"]
[TimeControl "900+10"]

1. d4 {[%emt 0:00:00]} d5 {[%emt 0:00:00]} 2. c4 {[%emt 0:00:00]} e6 {[%emt 0:00:00]} 3. Nc3 {[%emt 0:00:00]} Nf6 {[%emt 0:00:00]} 4. Nf3 {[%emt 0:00:00]} Nbd7 {[%emt 0:00:00]} 5. g3 {[%emt 0:00:01]} c6 {[%emt 0:00:05]} 6. Bg2 {[%emt 0:00:03]} Be7 {[%emt 0:00:02]} 7. O-O {[%emt 0:00:03]} O-O {[%emt 0:00:02]} 8. Qc2 {[%emt 0:01:11]} b6 {[%emt 0:00:03]} 9. b3 {[%emt 0:00:31]} Bb7 {[%emt 0:00:05]} 10. Bb2 {[%emt 0:00:23]} Rc8 {[%emt 0:00:04]} 11. Rfd1 {[%emt 0:00:54]} Ba8 {[%emt 0:00:29]} 12. Rac1 {[%emt 0:00:30]} Qc7 {[%emt 0:00:38]} 13. e4 {[%emt 0:01:46]} Qb8 {[%emt 0:00:41]} 14. e5 {[%emt 0:00:17]} Ne8 {[%emt 0:00:03]} 15. Qe2 {[%emt 0:00:55]} Nc7 {[%emt 0:00:44]} 16. cxd5 {[%emt 0:01:02]} cxd5 {[%emt 0:01:05]} 17. Nb5 {[%emt 0:00:38]} Na6 {[%emt 0:03:13]} 18. a3 {[%emt 0:02:21]} Bb7 {[%emt 0:00:18]} 19. Bf1 {[%emt 0:00:56]} Nc7 {[%emt 0:00:56]} 20. Nxc7 {[%emt 0:00:47]} Rxc7 {[%emt 0:00:34]} 21. Rxc7 {[%emt 0:00:02]} Qxc7 {[%emt 0:00:04]} 22. Rc1 {[%emt 0:00:01]} Qb8 {[%emt 0:00:03]} 23. Qb5 {[%emt 0:00:27]} Rd8 {[%emt 0:00:03]} 24. Ne1 {[%emt 0:00:38]} a6 {[%emt 0:00:30]} 25. Qe2 {[%emt 0:00:11]} Rc8 {[%emt 0:00:21]} 26. Rxc8+ {[%emt 0:00:08]} Qxc8 {[%emt 0:00:03]} 27. Qc2 {[%emt 0:00:03]} Qxc2 {[%emt 0:00:26]} 28. Nxc2 {[%emt 0:00:02]} Kf8 {[%emt 0:00:02]} 29. f4 {[%emt 0:00:06]} g5 {[%emt 0:01:50]} 30. Ne3 {[%emt 0:01:20]} gxf4 {[%emt 0:00:38]} 31. gxf4 {[%emt 0:00:02]} f5 {[%emt 0:00:51]} 32. Be2 {[%emt 0:00:56]} Kg7 {[%emt 0:00:34]} 33. Bh5 {[%emt 0:00:36]} Nf8 {[%emt 0:00:45]} 34. Kf2 {[%emt 0:00:49]} Ng6 {[%emt 0:00:24]} 35. Ng2 {[%emt 0:01:06]} Bc6 {[%emt 0:01:35]} 36. Be2 {[%emt 0:00:21]} a5 {[%emt 0:02:09]} 37. a4 {[%emt 0:00:32]} Bb4 {[%emt 0:00:07]} 38. Ke3 {[%emt 0:00:09]} Be8 {[%emt 0:00:27]} 39. Kd3 {[%emt 0:00:14]} Ne7 {[%emt 0:00:16]} 40. Kc2 {[%emt 0:00:14]} Kh6 {[%emt 0:00:23]} 41. Bc3 {[%emt 0:00:06]} Bxc3 {[%emt 0:00:41]} 42. Kxc3 {[%emt 0:00:02]} Bh5 {[%emt 0:00:00]} 43. Bb5 {[%emt 0:00:03]} Ng6 {[%emt 0:00:25]} 44. Bd7 {[%emt 0:00:37]} Bf3 {[%emt 0:00:10]} 45. Ne1 {[%emt 0:00:02]} Be4 {[%emt 0:00:02]} 46. Bxe6 {[%emt 0:00:09]} Nxf4 {[%emt 0:00:02]} 47. Bf7 {[%emt 0:00:13]} Ne2+ {[%emt 0:00:12]} 48. Kd2 {[%emt 0:00:38]} Nxd4 {[%emt 0:00:02]} 49. Kc3 {[%emt 0:00:01]} Ne2+ {[%emt 0:00:46]} 50. Kd2 {[%emt 0:00:02]} Nd4 {[%emt 0:00:01]} 51. Kc3 {[%emt 0:00:00]} Nc6 {[%emt 0:00:03]} 52. e6 {[%emt 0:00:07]} Kg7 {[%emt 0:00:19]} 53. Be8 {[%emt 0:00:21]} Ne7 {[%emt 0:00:15]} 54. Nd3 {[%emt 0:00:34]} Bxd3 {[%emt 0:00:04]} 55. Kxd3 {[%emt 0:00:01]} Kf6 {[%emt 0:00:01]} 56. Bd7 {[%emt 0:00:02]} Ke5 {[%emt 0:00:01]} 57. Kc3 {[%emt 0:00:20]} f4 {[%emt 0:00:08]} 58. b4 {[%emt 0:00:08]} h5 {[%emt 0:00:22]} 59. bxa5 {[%emt 0:00:12]} bxa5 {[%emt 0:00:01]} 60. Kd3 {[%emt 0:00:01]} h4 {[%emt 0:00:03]} 61. Ke2 {[%emt 0:00:17]} Ke4 {[%emt 0:00:04]} 62. Bb5 {[%emt 0:00:23]} f3+ {[%emt 0:00:35]} 63. Kd2 {[%emt 0:00:14]} d4 {[%emt 0:00:24]} 64. Ba6 {[%emt 0:00:11]} Ke5 {[%emt 0:00:11]} 65. Bc4 {[%emt 0:00:20]} Ng6 {[%emt 0:00:10]} 66. Bd3 {[%emt 0:00:14]} Ne7 {[%emt 0:00:12]} 67. Bc4 {[%emt 0:00:01]} Ke4 {[%emt 0:00:03]} 68. Ba6 {[%emt 0:00:02]} Kd5 {[%emt 0:00:09]} 69. Bb7+ {[%emt 0:00:04]} Kxe6 {[%emt 0:00:03]} 70. Bxf3 {[%emt 0:00:01]} Ke5 {[%emt 0:00:03]} 71. Kd3 {[%emt 0:00:09]} Nd5 {[%emt 0:00:06]} 72. Bd1 {[%emt 0:00:30]} Nb6 {[%emt 0:00:32]} 73. Bb3 {[%emt 0:00:13]} Nd7 {[%emt 0:00:01]} 74. Bd1 {[%emt 0:00:08]} Kd5 {[%emt 0:00:06]} 75. Bb3+ {[%emt 0:00:16]} Kc5 {[%emt 0:00:01]} 76. Be6 {[%emt 0:00:09]} Nb6 {[%emt 0:00:14]} 77. Bb3 {[%emt 0:00:14]} Nd5 {[%emt 0:00:03]} 78. Bd1 {[%emt 0:00:06]} Nb4+ {[%emt 0:00:04]} 79. Ke4 {[%emt 0:00:32]} Kc4 {[%emt 0:00:16]} 80. Kf4 {[%emt 0:00:01]} Nd5+ {[%emt 0:00:19]} 81. Kg5 {[%emt 0:00:14]} Nc3 {[%emt 0:00:01]} 82. Bg4 {[%emt 0:00:15]} *

[Event "29th Czech Open-Rapid 2018"]
[Site "Pardubice"]
[Date "2018.07.18"]
[Round "1"]
[White "Cerveny, Martin"]
[Black "Jazdanovs, Aleksandrs"]
[Result "1-0"]
[ECO "E10"]
[WhiteElo "2359"]
[BlackElo "2205"]
[Annotator "NA RC"]
[PlyCount "87"]
[EventDate "2018.07.18"]
[EventType "swiss"]
[EventCountry "CZE"]
[SourceTitle "playchess.com"]
[Source "ChessBase"]
[SourceQuality "1"]
[TimeControl "900+10"]

1. d4 {[%emt 0:00:00]} Nf6 {[%emt 0:00:00]} 2. Nf3 {[%emt 0:00:00]} c5 {[%emt 0:00:08]} 3. d5 {[%emt 0:00:36]} e6 {[%emt 0:00:16]} 4. c4 {[%emt 0:00:02]} b5 {[%emt 0:00:16]} 5. dxe6 {[%emt 0:00:03]} fxe6 {[%emt 0:00:06]} 6. cxb5 {[%emt 0:00:02]} d5 {[%emt 0:00:10]} 7. Nc3 {[%emt 0:00:02]} Bd6 {[%emt 0:00:20]} 8. e4 {[%emt 0:00:11]} Nxe4 {[%emt 0:02:39]} 9. Nxe4 {[%emt 0:00:02]} dxe4 {[%emt 0:00:01]} 10. Ng5 {[%emt 0:00:09]} O-O {[%emt 0:00:19]} 11. Bc4 {[%emt 0:01:15]} Qe7 {[%emt 0:01:37]} 12. Qh5 {[%emt 0:01:18]} g6 {[%emt 0:01:27]} 13. Qg4 {[%emt 0:00:19]} Rf5 {[%emt 0:01:12]} 14. O-O {[%emt 0:01:14]} a6 {[%emt 0:00:07]} 15. bxa6 {[%emt 0:01:14]} Nxa6 {[%emt 0:00:13]} 16. Qxe4 {[%emt 0:00:14]} Nc7 {[%emt 0:00:14]} 17. Rd1 {[%emt 0:01:59]} Bd7 {[%emt 0:02:03]} 18. Be3 {[%emt 0:00:57]} Re5 {[%emt 0:00:19]} 19. Qh4 {[%emt 0:00:36]} Nd5 {[%emt 0:00:12]} 20. Nf3 {[%emt 0:01:08]} Qxh4 {[%emt 0:00:02]} 21. Nxh4 {[%emt 0:00:01]} Nxe3 {[%emt 0:03:00]} 22. fxe3 {[%emt 0:00:09]} Re4 {[%emt 0:00:10]} 23. Rxd6 {[%emt 0:01:37]} Rxc4 {[%emt 0:00:03]} 24. Nf3 {[%emt 0:00:43]} Bb5 {[%emt 0:00:35]} 25. Rb6 {[%emt 0:00:39]} Rb4 {[%emt 0:00:05]} 26. a4 {[%emt 0:01:34]} Raxa4 {[%emt 0:00:54]} 27. Rxa4 {[%emt 0:00:03]} Bxa4 {[%emt 0:00:01]} 28. Rxb4 {[%emt 0:00:16]} cxb4 {[%emt 0:00:02]} 29. Kf2 {[%emt 0:00:10]} Kg7 {[%emt 0:00:21]} 30. Ne1 {[%emt 0:00:48]} Bb5 {[%emt 0:00:56]} 31. Nc2 {[%emt 0:00:14]} b3 {[%emt 0:00:02]} 32. Nd4 {[%emt 0:00:01]} Bc4 {[%emt 0:00:01]} 33. e4 {[%emt 0:01:08]} e5 {[%emt 0:00:09]} 34. Nf3 {[%emt 0:00:02]} Kf6 {[%emt 0:00:37]} 35. Ke3 {[%emt 0:00:01]} h6 {[%emt 0:00:32]} 36. Kd2 {[%emt 0:00:36]} Bf1 {[%emt 0:00:08]} 37. g3 {[%emt 0:00:32]} Bg2 {[%emt 0:00:41]} 38. Ke3 {[%emt 0:00:01]} Bxf3 {[%emt 0:00:03]} 39. Kxf3 {[%emt 0:00:01]} h5 {[%emt 0:00:28]} 40. h4 {[%emt 0:00:50]} g5 {[%emt 0:00:17]} 41. Ke3 {[%emt 0:00:04]} gxh4 {[%emt 0:00:03]} 42. gxh4 {[%emt 0:00:01]} Ke6 {[%emt 0:00:01]} 43. Kd3 {[%emt 0:00:01]} Kd6 {[%emt 0:00:01]} 44. Kc4 {[%emt 0:00:11]} 1-0

[Event "29th Czech Open-Rapid 2018"]
[Site "Pardubice"]
[Date "2018.07.18"]
[Round "1"]
[White "Kathmale, Sameer"]
[Black "Effenberger, Adam"]
[Result "*"]
[ECO "B22"]
[WhiteElo "2323"]
[BlackElo "1817"]
[Annotator "NA"]
[PlyCount "67"]
[EventDate "2018.07.18"]
[EventType "swiss"]
[EventCountry "CZE"]
[SourceTitle "playchess.com"]
[Source "ChessBase"]
[SourceQuality "1"]
[TimeControl "900+10"]

1. e4 {[%emt 0:00:00]} c5 {[%emt 0:00:00]} 2. c3 {[%emt 0:00:00]} g6 {[%emt 0:00:06]} 3. d4 {[%emt 0:00:00]} cxd4 {[%emt 0:00:05]} 4. cxd4 {[%emt 0:00:00]} d5 {[%emt 0:00:08]} 5. e5 {[%emt 0:00:00]} Nc6 {[%emt 0:00:06]} 6. Nc3 {[%emt 0:00:12]} Bg7 {[%emt 0:00:08]} 7. h3 {[%emt 0:00:02]} Nh6 {[%emt 0:00:32]} 8. g4 {[%emt 0:00:03]} O-O {[%emt 0:00:50]} 9. f4 {[%emt 0:00:07]} f6 {[%emt 0:00:32]} 10. Bg2 {[%emt 0:00:10]} e6 {[%emt 0:00:27]} 11. Nf3 {[%emt 0:00:02]} fxe5 {[%emt 0:00:28]} 12. fxe5 {[%emt 0:00:04]} b6 {[%emt 0:02:13]} 13. O-O {[%emt 0:01:23]} Ba6 {[%emt 0:01:29]} 14. Rf2 {[%emt 0:00:02]} Rc8 {[%emt 0:00:11]} 15. a3 {[%emt 0:00:52]} Qe7 {[%emt 0:00:30]} 16. Bg5 {[%emt 0:00:40]} Qd7 {[%emt 0:00:39]} 17. b4 {[%emt 0:00:25]} Na5 {[%emt 0:02:42]} 18. Rc1 Nc4 19. a4 {[%emt 0:01:47]} Nf7 {[%emt 0:01:28]} 20. Bf6 {[%emt 0:00:44]} Ne3 {[%emt 0:01:38]} 21. Qe1 {[%emt 0:00:13]} Nxg2 {[%emt 0:00:14]} 22. Kxg2 {[%emt 0:00:02]} Rc4 {[%emt 0:00:33]} 23. b5 {[%emt 0:00:59]} Bb7 {[%emt 0:00:19]} 24. h4 Nh6 25. Bxg7 {[%emt 0:03:39]} Kxg7 {[%emt 0:01:11]} 26. Kg3 {[%emt 0:00:09]} a6 {[%emt 0:02:04]} 27. Qe3 {[%emt 0:00:25]} axb5 {[%emt 0:00:29]} 28. Nxb5 {[%emt 0:00:10]} Rxc1 {[%emt 0:00:20]} 29. Qxc1 {[%emt 0:00:04]} Rc8 {[%emt 0:00:01]} 30. Qg5 {[%emt 0:00:25]} Ba6 {[%emt 0:00:26]} 31. Qf6+ {[%emt 0:01:01]} Kg8 {[%emt 0:00:01]} 32. Ng5 {[%emt 0:00:06]} Bxb5 {[%emt 0:00:12]} 33. axb5 {[%emt 0:00:01]} Rc3+ {[%emt 0:00:05]} 34. Kg2 {[%emt 0:00:11]} *

[Event "29th Czech Open-Rapid 2018"]
[Site "Pardubice"]
[Date "2018.07.18"]
[Round "1"]
[White "Gabr, Mohsen"]
[Black "SKOLOUD, BARNABAS"]
[Result "*"]
[ECO "A96"]
[WhiteElo "2287"]
[BlackElo "1637"]
[Annotator "NA"]
[PlyCount "42"]
[EventDate "2018.07.18"]
[EventType "swiss"]
[EventCountry "CZE"]
[SourceTitle "playchess.com"]
[Source "ChessBase"]
[SourceQuality "1"]
[TimeControl "900+10"]

1. d4 {[%emt 0:00:00]} f5 {[%emt 0:00:00]} 2. g3 {[%emt 0:00:00]} Nf6 {[%emt 0:00:00]} 3. Bg2 {[%emt 0:00:00]} e6 {[%emt 0:00:00]} 4. Nf3 {[%emt 0:00:07]} Be7 {[%emt 0:00:00]} 5. O-O {[%emt 0:00:03]} O-O {[%emt 0:00:00]} 6. c4 {[%emt 0:00:04]} d6 {[%emt 0:00:00]} 7. Nc3 {[%emt 0:00:06]} Ne4 {[%emt 0:00:02]} 8. Qc2 {[%emt 0:00:13]} Nxc3 {[%emt 0:01:34]} 9. Qxc3 {[%emt 0:00:05]} Bf6 {[%emt 0:00:07]} 10. Qc2 {[%emt 0:00:16]} e5 {[%emt 0:00:05]} 11. dxe5 {[%emt 0:00:12]} dxe5 {[%emt 0:00:01]} 12. Rd1 {[%emt 0:00:46]} Qe8 {[%emt 0:00:01]} 13. e4 {[%emt 0:00:12]} Nc6 {[%emt 0:00:12]} 14. Be3 {[%emt 0:01:00]} Qg6 {[%emt 0:00:29]} 15. Nd2 {[%emt 0:05:50]} f4 {[%emt 0:00:38]} 16. Bc5 {[%emt 0:00:02]} Rf7 {[%emt 0:03:02]} 17. Kh1 {[%emt 0:01:03]} b6 {[%emt 0:00:04]} 18. Ba3 {[%emt 0:00:10]} Nd4 {[%emt 0:00:41]} 19. Qd3 {[%emt 0:00:25]} a5 {[%emt 0:03:07]} 20. gxf4 {[%emt 0:00:26]} exf4 {[%emt 0:00:02]} 21. Rg1 {[%emt 0:00:02]} Qh5 {[%emt 0:01:39]} *

[Event "29th Czech Open-Rapid 2018"]
[Site "Pardubice"]
[Date "2018.07.18"]
[Round "1"]
[White "Bente, Bjoern"]
[Black "Alekseev, Mikhail G"]
[Result "1-0"]
[ECO "B12"]
[WhiteElo "2219"]
[BlackElo "1855"]
[Annotator "NA"]
[PlyCount "63"]
[EventDate "2018.07.18"]
[EventType "swiss"]
[EventCountry "CZE"]
[SourceTitle "playchess.com"]
[Source "ChessBase"]
[SourceQuality "1"]
[TimeControl "900+10"]

1. e4 {[%emt 0:00:00]} c6 {[%emt 0:00:00]} 2. d4 {[%emt 0:00:00]} d5 {[%emt 0:00:00]} 3. e5 {[%emt 0:00:00]} c5 {[%emt 0:00:00]} 4. dxc5 {[%emt 0:00:00]} e6 {[%emt 0:00:16]} 5. a3 {[%emt 0:00:09]} Bxc5 {[%emt 0:00:41]} 6. b4 {[%emt 0:00:03]} Bb6 {[%emt 0:00:29]} 7. Nf3 {[%emt 0:00:02]} a5 {[%emt 0:00:38]} 8. b5 {[%emt 0:00:26]} Ne7 {[%emt 0:00:41]} 9. Bd3 {[%emt 0:00:21]} Ng6 {[%emt 0:00:21]} 10. O-O {[%emt 0:00:08]} Nd7 {[%emt 0:00:27]} 11. Bb2 {[%emt 0:00:30]} Nf4 {[%emt 0:00:46]} 12. Nbd2 {[%emt 0:00:24]} Nxd3 {[%emt 0:00:15]} 13. cxd3 {[%emt 0:00:01]} O-O {[%emt 0:01:23]} 14. a4 {[%emt 0:00:02]} Nc5 {[%emt 0:01:13]} 15. Qe2 {[%emt 0:00:19]} Ba7 {[%emt 0:01:44]} 16. Rfc1 {[%emt 0:00:14]} b6 {[%emt 0:00:27]} 17. Ba3 {[%emt 0:00:07]} Re8 {[%emt 0:00:35]} 18. Bxc5 {[%emt 0:00:26]} bxc5 {[%emt 0:00:03]} 19. Nb3 {[%emt 0:00:02]} Qc7 {[%emt 0:01:48]} 20. Nxc5 {[%emt 0:00:12]} Bxc5 {[%emt 0:00:03]} 21. d4 {[%emt 0:00:01]} Bd7 {[%emt 0:00:12]} 22. dxc5 {[%emt 0:00:03]} f6 {[%emt 0:00:17]} 23. c6 {[%emt 0:00:30]} Bc8 {[%emt 0:00:03]} 24. Rab1 {[%emt 0:00:27]} Rb8 {[%emt 0:00:07]} 25. Qe3 {[%emt 0:00:09]} Rb6 {[%emt 0:00:09]} 26. exf6 {[%emt 0:00:09]} gxf6 {[%emt 0:00:04]} 27. Qc3 {[%emt 0:00:02]} e5 {[%emt 0:00:21]} 28. Qxa5 {[%emt 0:00:05]} Bf5 {[%emt 0:00:08]} 29. Rb2 {[%emt 0:00:09]} d4 {[%emt 0:00:06]} 30. Nd2 {[%emt 0:00:50]} Bd3 {[%emt 0:00:36]} 31. Qb4 {[%emt 0:00:07]} Reb8 {[%emt 0:00:07]} 32. Qc5 {[%emt 0:00:10]} 1-0

[Event "29th Czech Open-Rapid 2018"]
[Site "Pardubice"]
[Date "2018.07.18"]
[Round "1"]
[White "Ruzicka, Josef"]
[Black "Neuman, Petr"]
[Result "0-1"]
[ECO "B23"]
[WhiteElo "2139"]
[BlackElo "2440"]
[Annotator "NA RC"]
[PlyCount "97"]
[EventDate "2018.07.18"]
[EventType "swiss"]
[EventCountry "CZE"]
[SourceTitle "playchess.com"]
[Source "ChessBase"]
[SourceQuality "1"]
[TimeControl "900+10"]

1. e4 {[%emt 0:00:00]} c5 {[%emt 0:00:00]} 2. Nc3 {[%emt 0:00:06]} d6 {[%emt 0:00:00]} 3. f4 {[%emt 0:00:07]} g6 {[%emt 0:00:00]} 4. Nf3 {[%emt 0:00:19]} Bg7 {[%emt 0:00:00]} 5. Bb5+ {[%emt 0:00:17]} Bd7 {[%emt 0:00:12]} 6. Bxd7+ {[%emt 0:00:08]} Qxd7 {[%emt 0:00:02]} 7. O-O {[%emt 0:00:16]} Nc6 {[%emt 0:00:03]} 8. d3 {[%emt 0:00:10]} Nf6 {[%emt 0:00:17]} 9. Qe1 {[%emt 0:01:26]} O-O {[%emt 0:00:24]} 10. Qh4 {[%emt 0:01:00]} Qg4 {[%emt 0:00:29]} 11. Qf2 {[%emt 0:03:26]} Qd7 {[%emt 0:00:23]} 12. Qh4 {[%emt 0:00:03]} d5 {[%emt 0:00:29]} 13. e5 {[%emt 0:00:21]} Ne8 {[%emt 0:00:02]} 14. Bd2 {[%emt 0:00:33]} f6 {[%emt 0:00:35]} 15. Rae1 {[%emt 0:00:32]} Nc7 {[%emt 0:00:01]} 16. Nd1 {[%emt 0:02:55]} Ne6 {[%emt 0:03:48]} 17. c3 {[%emt 0:00:37]} f5 {[%emt 0:00:12]} 18. Ng5 {[%emt 0:01:29]} Nxg5 {[%emt 0:00:03]} 19. Qxg5 {[%emt 0:00:03]} Nd8 {[%emt 0:00:18]} 20. h4 {[%emt 0:00:27]} Ne6 {[%emt 0:00:20]} 21. Qg3 {[%emt 0:00:01]} Kf7 {[%emt 0:01:27]} 22. Nf2 {[%emt 0:00:25]} h5 {[%emt 0:00:05]} 23. Nh3 {[%emt 0:00:06]} Bh6 {[%emt 0:00:01]} 24. Be3 {[%emt 0:01:26]} Qb5 {[%emt 0:00:28]} 25. Bc1 {[%emt 0:00:33]} a5 {[%emt 0:00:28]} 26. Qf3 {[%emt 0:00:26]} Qc6 {[%emt 0:00:04]} 27. c4 {[%emt 0:00:52]} Rfd8 {[%emt 0:00:12]} 28. Be3 {[%emt 0:00:07]} Rac8 {[%emt 0:00:16]} 29. Rc1 {[%emt 0:00:02]} b6 {[%emt 0:00:51]} 30. Rfd1 {[%emt 0:00:02]} Qd7 {[%emt 0:01:31]} 31. Kh1 {[%emt 0:00:15]} a4 {[%emt 0:00:21]} 32. Kh2 Ra8 {[%emt 0:00:32]} 33. Kg3 {[%emt 0:00:42]} b5 {[%emt 0:00:15]} 34. cxb5 {[%emt 0:00:54]} Qxb5 {[%emt 0:00:04]} 35. Rc2 {[%emt 0:00:05]} Rac8 {[%emt 0:00:33]} 36. Bf2 {[%emt 0:00:09]} c4 {[%emt 0:02:55]} 37. dxc4 {[%emt 0:00:00]} dxc4 {[%emt 0:00:13]} 38. Rcd2 {[%emt 0:00:20]} Rxd2 {[%emt 0:01:03]} 39. Rxd2 {[%emt 0:00:00]} Qb4 {[%emt 0:00:11]} 40. Qe2 {[%emt 0:00:24]} c3 {[%emt 0:00:05]} 41. bxc3 {[%emt 0:00:03]} Bxf4+ {[%emt 0:00:21]} 42. Nxf4 {[%emt 0:00:16]} Qxf4+ {[%emt 0:00:02]} 43. Kh3 {[%emt 0:00:01]} Rxc3+ {[%emt 0:00:10]} 44. g3 {[%emt 0:00:07]} Qc4 {[%emt 0:00:14]} 45. Qxc4 {[%emt 0:00:29]} Rxc4 {[%emt 0:00:00]} 46. Kg2 {[%emt 0:00:05]} Re4 {[%emt 0:00:06]} 47. Rd5 {[%emt 0:00:17]} Re2 {[%emt 0:00:15]} 48. a3 {[%emt 0:00:04]} Ra2 {[%emt 0:00:01]} 49. Rd3 {[%emt 0:00:01]} 0-1

[Event "29th Czech Open-Rapid 2018"]
[Site "Pardubice"]
[Date "2018.07.18"]
[Round "1"]
[White "Tarun V Kanth"]
[Black "Vusatiuk, Vladimir"]
[Result "1-0"]
[ECO "D26"]
[WhiteElo "2086"]
[BlackElo "2321"]
[Annotator "NA"]
[PlyCount "43"]
[EventDate "2018.07.18"]
[EventType "swiss"]
[EventCountry "CZE"]
[SourceTitle "playchess.com"]
[Source "ChessBase"]
[SourceQuality "1"]
[TimeControl "900+10"]

1. d4 {[%emt 0:00:00]} d5 {[%emt 0:00:00]} 2. c4 {[%emt 0:00:00]} dxc4 {[%emt 0:00:00]} 3. Nf3 {[%emt 0:00:00]} Nf6 {[%emt 0:00:00]} 4. e3 {[%emt 0:00:02]} e6 {[%emt 0:00:00]} 5. Bxc4 {[%emt 0:00:02]} a6 {[%emt 0:00:00]} 6. O-O {[%emt 0:00:08]} c5 {[%emt 0:00:00]} 7. Bb3 {[%emt 0:00:15]} b5 {[%emt 0:00:05]} 8. a4 {[%emt 0:00:12]} b4 {[%emt 0:00:01]} 9. Nbd2 {[%emt 0:00:43]} Bb7 {[%emt 0:00:06]} 10. e4 {[%emt 0:00:31]} Nbd7 {[%emt 0:00:37]} 11. e5 {[%emt 0:01:52]} Nd5 {[%emt 0:00:03]} 12. Ne4 {[%emt 0:00:01]} Ne3 {[%emt 0:00:44]} 13. Bxe3 {[%emt 0:01:18]} Bxe4 {[%emt 0:00:02]} 14. d5 {[%emt 0:00:01]} c4 {[%emt 0:06:33]} 15. dxe6 {[%emt 0:03:12]} cxb3 {[%emt 0:00:06]} 16. exf7+ {[%emt 0:00:16]} Kxf7 {[%emt 0:01:01]} 17. Ng5+ {[%emt 0:00:23]} Kg6 {[%emt 0:00:04]} 18. Nxe4 {[%emt 0:00:08]} Nxe5 {[%emt 0:00:03]} 19. Qxb3 {[%emt 0:00:10]} Be7 {[%emt 0:01:39]} 20. f4 {[%emt 0:00:50]} Qd3 {[%emt 0:01:14]} 21. f5+ {[%emt 0:00:09]} Kh5 {[%emt 0:00:04]} 22. Ng3+ {[%emt 0:00:09]} 1-0